[Event "1st Bangalore GM-Open-B 2024"]
[Site "Bangalore"]
[Date "2024.01.19"]
[Round "4.5"]
[White "Dinesh Kumar Jaganathan"]
[Black "Andalamala Hemal Varshan"]
[Result "0-1"]
[ECO "E04"]
[WhiteElo "1761"]
[BlackElo "1578"]
[Annotator "NA RC"]
[PlyCount "92"]
[EventDate "2024.01.20"]
[EventType "swiss"]
[EventCountry "IND"]
[SourceTitle "playchess.com"]
[Source "ChessBase"]
[SourceQuality "1"]
[TimeControl "3600+30"]

1. Nf3 {[%emt 0:00:22]} c5 {[%emt 0:00:55]} 2. g3 {[%emt 0:00:14]} Nc6 {[%emt 0:00:59]} 3. d4 {[%emt 0:00:08]} d5 {[%emt 0:02:17]} 4. Bg2 {[%emt 0:00:08]} Nf6 {[%emt 0:00:31]} 5. O-O {[%emt 0:00:08]} e6 {[%emt 0:00:04]} 6. c4 {[%emt 0:00:05]} dxc4 {[%emt 0:00:10]} 7. Qa4 {[%emt 0:00:06]} Bd7 {[%emt 0:00:13]} 8. Qxc4 {[%emt 0:00:08]} b5 {[%emt 0:00:07]} 9. Qd3 {[%emt 0:00:41]} c4 {[%emt 0:00:13]} 10. Qd1 {[%emt 0:00:36]} Rc8 {[%emt 0:00:44]} 11. Ne5 {[%emt 0:03:24]} Nxe5 {[%emt 0:07:03]} 12. dxe5 {[%emt 0:00:04]} Nd5 {[%emt 0:00:11]} 13. a4 {[%emt 0:07:33]} b4 {[%emt 0:01:03]} 14. e4 {[%emt 0:01:26]} Nb6 {[%emt 0:00:50]} 15. Be3 {[%emt 0:05:14]} a5 {[%emt 0:02:27]} 16. f4 {[%emt 0:05:45]} Qc7 {[%emt 0:01:04]} 17. Kh1 {[%emt 0:10:36]} Bc5 {[%emt 0:03:16]} 18. Bxc5 {[%emt 0:04:46]} Qxc5 {[%emt 0:00:04]} 19. Nd2 {[%emt 0:08:15]} Bc6 {[%emt 0:05:31]} 20. Qc2 {[%emt 0:01:54]} Bd7 {[%emt 0:05:03]} 21. Rfc1 {[%emt 0:00:54]} Qc7 {[%emt 0:03:07]} 22. Bf1 {[%emt 0:02:26]} c3 {[%emt 0:01:03]} 23. bxc3 {[%emt 0:01:10]} bxc3 {[%emt 0:00:34]} 24. Nb1 {[%emt 0:01:31]} O-O {[%emt 0:00:36]} 25. Nxc3 {[%emt 0:01:51]} Nxa4 {[%emt 0:02:30]} 26. Rxa4 {[%emt 0:02:09]} Bxa4 {[%emt 0:02:01]} 27. Qxa4 {[%emt 0:00:19]} Rfd8 {[%emt 0:00:05]} 28. Na2 {[%emt 0:06:01]} Qa7 {[%emt 0:02:02]} 29. Rxc8 {[%emt 0:03:33]} Rxc8 {[%emt 0:00:01]} 30. Kg2 {[%emt 0:02:50]} Qe3 31. Qxa5 {[%emt 0:00:46]} Qxe4+ {[%emt 0:04:52]} 32. Kg1 {[%emt 0:00:26]} Qd4+ {[%emt 0:01:11]} 33. Kh1 {[%emt 0:00:11]} Qe4+ {[%emt 0:01:16]} 34. Kg1 {[%emt 0:00:05]} Qe3+ {[%emt 0:00:03]} 35. Kh1 {[%emt 0:00:07]} h5 {[%emt 0:00:19]} 36. Qa6 {[%emt 0:01:01]} Rc2 {[%emt 0:05:14]} 37. Qa8+ {[%emt 0:00:34]} Kh7 {[%emt 0:00:02]} 38. Nb4 {[%emt 0:00:54]} Qe1 {[%emt 0:01:19]} 39. Qf3 {[%emt 0:00:58]} Rc1 {[%emt 0:00:58]} 40. Kg2 {[%emt 0:00:28]} Qxb4 {[%emt 0:01:55]} 41. Qxh5+ {[%emt 0:00:38]} Kg8 {[%emt 0:00:02]} 42. Qf3 {[%emt 0:00:20]} Qd2+ {[%emt 0:02:39]} 43. Kh3 {[%emt 0:00:13]} Rc3 {[%emt 0:00:51]} 44. Qa8+ {[%emt 0:00:30]} Kh7 {[%emt 0:00:02]} 45. Qe4+ {[%emt 0:00:08]} g6 {[%emt 0:01:28]} 46. Qe2 {[%emt 0:01:22]} Qxf4 {[%emt 0:00:30]} 0-1

[Event "1st Bangalore GM-Open-B 2024"]
[Site "Bangalore"]
[Date "2024.01.19"]
[Round "5.1"]
[White "Selvamurugan B"]
[Black "Madhesh Kumar S"]
[Result "1-0"]
[ECO "C47"]
[WhiteElo "1920"]
[BlackElo "1664"]
[Annotator "NA RC"]
[PlyCount "105"]
[EventDate "2024.01.20"]
[EventType "swiss"]
[EventCountry "IND"]
[SourceTitle "playchess.com"]
[Source "ChessBase"]
[SourceQuality "1"]
[TimeControl "3600+30"]

1. e4 {[%emt 0:00:02]} e5 {[%emt 0:00:07]} 2. Nf3 {[%emt 0:00:02]} Nc6 {[%emt 0:00:07]} 3. Nc3 {[%emt 0:00:04]} Nf6 {[%emt 0:00:37]} 4. a3 {[%emt 0:00:21]} d5 {[%emt 0:02:13]} 5. Bb5 {[%emt 0:00:37]} dxe4 {[%emt 0:02:16]} 6. Nxe5 {[%emt 0:01:32]} Bd7 {[%emt 0:01:53]} 7. Bxc6 {[%emt 0:00:40]} bxc6 {[%emt 0:00:30]} 8. Qe2 {[%emt 0:00:41]} Bf5 {[%emt 0:05:30]} 9. Qc4 {[%emt 0:02:56]} Be6 {[%emt 0:10:42]} 10. Qxc6+ {[%emt 0:00:54]} Nd7 {[%emt 0:00:26]} 11. Nxd7 {[%emt 0:00:16]} Bxd7 {[%emt 0:00:15]} 12. Qxe4+ {[%emt 0:00:06]} Be6 {[%emt 0:01:30]} 13. Nb5 {[%emt 0:03:25]} Bd6 {[%emt 0:07:12]} 14. Qc6+ {[%emt 0:01:57]} Ke7 {[%emt 0:00:16]} 15. O-O {[%emt 0:03:34]} Re8 {[%emt 0:00:58]} 16. Nxd6 {[%emt 0:01:09]} cxd6 {[%emt 0:00:07]} 17. d4 {[%emt 0:00:19]} Kf8 {[%emt 0:00:37]} 18. Bf4 {[%emt 0:00:28]} d5 {[%emt 0:00:58]} 19. Qd6+ {[%emt 0:04:19]} Qxd6 {[%emt 0:01:38]} 20. Bxd6+ {[%emt 0:00:02]} Kg8 {[%emt 0:00:09]} 21. Rfe1 {[%emt 0:00:45]} Bf5 {[%emt 0:00:50]} 22. c3 {[%emt 0:00:35]} Bc2 {[%emt 0:03:24]} 23. Re5 {[%emt 0:06:19]} Bb3 {[%emt 0:01:23]} 24. Rae1 {[%emt 0:00:14]} Rxe5 {[%emt 0:00:43]} 25. dxe5 {[%emt 0:01:12]} a5 {[%emt 0:01:12]} 26. f4 {[%emt 0:00:34]} g6 {[%emt 0:05:02]} 27. g4 {[%emt 0:00:18]} h5 {[%emt 0:02:09]} 28. gxh5 {[%emt 0:00:09]} gxh5 {[%emt 0:00:07]} 29. Kf2 {[%emt 0:00:23]} Kh7 {[%emt 0:02:58]} 30. f5 {[%emt 0:02:47]} a4 {[%emt 0:04:21]} 31. Kf3 {[%emt 0:02:17]} Rg8 {[%emt 0:05:32]} 32. e6 {[%emt 0:03:56]} fxe6 {[%emt 0:01:40]} 33. fxe6 {[%emt 0:05:25]} Rd8 {[%emt 0:05:25]} 34. e7 {[%emt 0:00:00]} Re8 {[%emt 0:00:07]} 35. Kf4 {[%emt 0:00:00]} Kg6 {[%emt 0:00:28]} 36. Ke5 {[%emt 0:00:00]} Bc4 {[%emt 0:00:50]} 37. Re3 {[%emt 0:00:00]} Rc8 {[%emt 0:03:00]} 38. Rg3+ {[%emt 0:00:00]} Kh7 {[%emt 0:01:16]} 39. Kf6 {[%emt 0:00:00]} Bb5 {[%emt 0:00:25]} 40. Rg7+ {[%emt 0:00:00]} Kh8 {[%emt 0:00:09]} 41. Be5 {[%emt 0:00:00]} Rg8 {[%emt 0:00:55]} 42. Rf7 {[%emt 0:00:00]} Bd7 {[%emt 0:00:35]} 43. e8=Q {[%emt 0:00:13]} Rxe8 {[%emt 0:00:14]} 44. Kg6+ {[%emt 0:00:37]} Kg8 {[%emt 0:00:07]} 45. Rg7+ {[%emt 0:00:04]} Kf8 {[%emt 0:00:10]} 46. Bd6+ {[%emt 0:00:03]} Re7 {[%emt 0:00:12]} 47. Rxe7 {[%emt 0:00:02]} Be8+ {[%emt 0:00:09]} 48. Kf6 {[%emt 0:00:07]} Bb5 {[%emt 0:00:12]} 49. Rb7+ {[%emt 0:00:20]} Ke8 {[%emt 0:00:06]} 50. Ke6 {[%emt 0:00:23]} Bd7+ {[%emt 0:00:22]} 51. Rxd7 {[%emt 0:00:01]} d4 {[%emt 0:00:09]} 52. Rb7 {[%emt 0:00:08]} Kd8 {[%emt 0:00:07]} 53. Rb8# {[%emt 0:00:03]} 1-0

[Event "1st Bangalore GM-Open-B 2024"]
[Site "Bangalore"]
[Date "2024.01.19"]
[Round "5.2"]
[White "Haridev S"]
[Black "Jaidambareesh N R"]
[Result "1/2-1/2"]
[ECO "B33"]
[WhiteElo "1647"]
[BlackElo "1757"]
[Annotator "NA RC"]
[PlyCount "53"]
[EventDate "2024.01.20"]
[EventType "swiss"]
[EventCountry "IND"]
[SourceTitle "playchess.com"]
[Source "ChessBase"]
[SourceQuality "1"]
[TimeControl "3600+30"]

1. e4 {[%emt 0:00:55]} c5 {[%emt 0:01:03]} 2. Nf3 {[%emt 0:00:21]} Nc6 {[%emt 0:00:07]} 3. d4 {[%emt 0:00:07]} cxd4 {[%emt 0:00:08]} 4. Nxd4 {[%emt 0:00:07]} Nf6 {[%emt 0:00:15]} 5. Nc3 {[%emt 0:00:16]} e5 {[%emt 0:00:07]} 6. Ndb5 {[%emt 0:00:16]} d6 {[%emt 0:00:08]} 7. Bg5 {[%emt 0:00:13]} a6 {[%emt 0:00:10]} 8. Na3 {[%emt 0:00:12]} b5 {[%emt 0:00:11]} 9. Bxf6 {[%emt 0:00:10]} gxf6 {[%emt 0:00:09]} 10. Nd5 {[%emt 0:00:06]} Bg7 {[%emt 0:00:10]} 11. Bd3 {[%emt 0:01:12]} Ne7 {[%emt 0:04:16]} 12. Ne3 {[%emt 0:08:09]} f5 {[%emt 0:03:42]} 13. exf5 {[%emt 0:22:29]} d5 {[%emt 0:02:03]} 14. c3 {[%emt 0:01:05]} e4 {[%emt 0:01:49]} 15. Be2 {[%emt 0:00:35]} Bxf5 {[%emt 0:04:11]} 16. Nac2 {[%emt 0:00:37]} Bc8 {[%emt 0:03:21]} 17. Qd2 {[%emt 0:11:10]} O-O {[%emt 0:05:08]} 18. Rd1 {[%emt 0:00:07]} Bb7 {[%emt 0:00:36]} 19. Nd4 {[%emt 0:00:11]} Bh6 {[%emt 0:08:36]} 20. O-O {[%emt 0:02:06]} Qb8 {[%emt 0:02:50]} 21. g3 {[%emt 0:12:12]} f5 {[%emt 0:07:33]} 22. Ne6 {[%emt 0:00:00]} Rf7 {[%emt 0:06:28]} 23. f4 {[%emt 0:02:30]} Qd6 {[%emt 0:04:47]} 24. Nd4 {[%emt 0:02:32]} Bg7 {[%emt 0:00:16]} 25. a3 {[%emt 0:01:42]} Rd8 {[%emt 0:00:45]} 26. Qc2 {[%emt 0:00:57]} Qb6 {[%emt 0:01:24]} 27. Qd2 {[%emt 0:06:46]} 1/2-1/2

[Event "1st Bangalore GM-Open-B 2024"]
[Site "Bangalore"]
[Date "2024.01.19"]
[Round "5.3"]
[White "Partha, Sarathi Satpathy"]
[Black "Neil Franclin, S."]
[Result "0-1"]
[ECO "B33"]
[WhiteElo "1626"]
[BlackElo "1736"]
[Annotator "NA RC"]
[PlyCount "104"]
[EventDate "2024.01.20"]
[EventType "swiss"]
[EventCountry "IND"]
[SourceTitle "playchess.com"]
[Source "ChessBase"]
[SourceQuality "1"]
[TimeControl "3600+30"]

1. e4 {[%emt 0:00:03]} c5 {[%emt 0:00:16]} 2. Nf3 {[%emt 0:00:05]} Nc6 {[%emt 0:00:04]} 3. d4 {[%emt 0:00:03]} cxd4 {[%emt 0:00:04]} 4. Nxd4 {[%emt 0:00:05]} Nf6 {[%emt 0:00:08]} 5. Nc3 {[%emt 0:00:06]} e5 {[%emt 0:00:05]} 6. Ndb5 {[%emt 0:01:14]} d6 {[%emt 0:00:06]} 7. Bg5 {[%emt 0:00:57]} a6 {[%emt 0:00:04]} 8. Bxf6 {[%emt 0:00:28]} gxf6 {[%emt 0:00:09]} 9. Na3 {[%emt 0:00:05]} b5 {[%emt 0:00:06]} 10. Nd5 {[%emt 0:00:04]} f5 {[%emt 0:00:08]} 11. Bxb5 {[%emt 0:04:11]} axb5 {[%emt 0:00:04]} 12. Nxb5 {[%emt 0:00:05]} Ra4 {[%emt 0:00:02]} 13. Nbc7+ {[%emt 0:00:42]} Kd7 {[%emt 0:00:02]} 14. Nb6+ {[%emt 0:04:38]} Kxc7 {[%emt 0:00:09]} 15. Nxa4 {[%emt 0:00:04]} Qg5 {[%emt 0:07:19]} 16. Qf3 {[%emt 0:08:06]} fxe4 {[%emt 0:17:42]} 17. Qxe4 {[%emt 0:08:55]} Bb7 {[%emt 0:13:03]} 18. h4 {[%emt 0:04:49]} Qg6 {[%emt 0:00:21]} 19. Qxg6 {[%emt 0:02:05]} hxg6 {[%emt 0:00:08]} 20. O-O-O {[%emt 0:02:42]} Nd4 {[%emt 0:00:56]} 21. Rh2 {[%emt 0:05:42]} Bh6+ {[%emt 0:01:18]} 22. Kb1 {[%emt 0:00:12]} Be4 {[%emt 0:00:14]} 23. Rxd4 {[%emt 0:04:28]} exd4 {[%emt 0:00:15]} 24. b3 {[%emt 0:00:03]} d3 {[%emt 0:01:35]} 25. cxd3 {[%emt 0:00:27]} Bxd3+ {[%emt 0:00:04]} 26. Kb2 {[%emt 0:00:06]} Bg7+ {[%emt 0:05:13]} 27. Kc1 {[%emt 0:00:27]} d5 {[%emt 0:01:30]} 28. Kd2 {[%emt 0:01:39]} Bf5 {[%emt 0:00:34]} 29. Rh1 {[%emt 0:04:20]} d4 {[%emt 0:00:57]} 30. Rc1+ {[%emt 0:00:55]} Kd6 {[%emt 0:00:25]} 31. g3 {[%emt 0:00:19]} Ra8 {[%emt 0:00:51]} 32. Rc4 {[%emt 0:05:00]} Bd7 {[%emt 0:01:00]} 33. f3 {[%emt 0:01:04]} Bxa4 {[%emt 0:02:30]} 34. bxa4 {[%emt 0:00:12]} Kd5 {[%emt 0:00:25]} 35. Kd3 {[%emt 0:01:27]} Re8 {[%emt 0:00:21]} 36. Rc7 {[%emt 0:00:31]} Re3+ {[%emt 0:00:16]} 37. Kc2 {[%emt 0:00:28]} Rc3+ {[%emt 0:00:23]} 38. Rxc3 {[%emt 0:00:23]} dxc3 {[%emt 0:00:02]} 39. g4 {[%emt 0:00:11]} Kc5 {[%emt 0:00:04]} 40. a3 {[%emt 0:01:12]} Kb6 {[%emt 0:00:02]} 41. f4 {[%emt 0:00:54]} f5 {[%emt 0:00:01]} 42. gxf5 {[%emt 0:00:19]} gxf5 {[%emt 0:00:01]} 43. Kb3 {[%emt 0:00:18]} Ka5 {[%emt 0:00:04]} 44. h5 {[%emt 0:00:17]} Bf6 {[%emt 0:00:01]} 45. h6 {[%emt 0:00:19]} Bh8 {[%emt 0:00:01]} 46. h7 {[%emt 0:00:18]} Bg7 {[%emt 0:00:01]} 47. Kc2 {[%emt 0:00:52]} Kxa4 {[%emt 0:00:05]} 48. Kc1 {[%emt 0:00:07]} Kxa3 {[%emt 0:00:05]} 49. Kc2 {[%emt 0:00:03]} Kb4 {[%emt 0:00:06]} 50. Kc1 {[%emt 0:00:11]} Kb3 {[%emt 0:00:11]} 51. Kb1 {[%emt 0:00:23]} c2+ {[%emt 0:00:11]} 52. Kc1 {[%emt 0:00:04]} Bb2+ {[%emt 0:00:03]} 0-1

[Event "1st Bangalore GM-Open-B 2024"]
[Site "Bangalore"]
[Date "2024.01.19"]
[Round "5.4"]
[White "Kadav Omkar"]
[Black "Bhuvan Krishna Prasanth"]
[Result "1-0"]
[ECO "C65"]
[WhiteElo "1725"]
[BlackElo "1595"]
[Annotator "NA RC"]
[PlyCount "113"]
[EventDate "2024.01.20"]
[EventType "swiss"]
[EventCountry "IND"]
[SourceTitle "playchess.com"]
[Source "ChessBase"]
[SourceQuality "1"]
[TimeControl "3600+30"]

1. e4 {[%emt 0:00:05]} e5 {[%emt 0:00:06]} 2. Nf3 {[%emt 0:00:10]} Nc6 {[%emt 0:00:05]} 3. Bb5 {[%emt 0:00:16]} Nf6 {[%emt 0:00:22]} 4. O-O {[%emt 0:00:54]} d6 {[%emt 0:00:19]} 5. Qe2 {[%emt 0:01:32]} Be7 {[%emt 0:00:09]} 6. c3 {[%emt 0:00:26]} O-O {[%emt 0:00:08]} 7. Rd1 {[%emt 0:00:49]} Bg4 {[%emt 0:01:05]} 8. h3 {[%emt 0:00:31]} Bh5 {[%emt 0:00:10]} 9. d3 {[%emt 0:00:45]} Re8 {[%emt 0:01:07]} 10. Nbd2 {[%emt 0:00:23]} Bf8 {[%emt 0:00:15]} 11. Nf1 {[%emt 0:00:51]} a6 {[%emt 0:01:22]} 12. Ba4 {[%emt 0:00:08]} b5 {[%emt 0:00:04]} 13. Bb3 {[%emt 0:01:40]} Na5 {[%emt 0:00:11]} 14. Bc2 {[%emt 0:00:07]} c5 {[%emt 0:00:06]} 15. g4 {[%emt 0:00:42]} Bg6 {[%emt 0:00:11]} 16. Ne3 {[%emt 0:01:48]} h6 {[%emt 0:01:39]} 17. h4 {[%emt 0:08:49]} Qd7 {[%emt 0:00:47]} 18. g5 {[%emt 0:08:31]} Nh5 {[%emt 0:02:19]} 19. Nh2 {[%emt 0:09:09]} Nf4 {[%emt 0:01:12]} 20. Qg4 {[%emt 0:00:47]} Qxg4+ {[%emt 0:00:32]} 21. Nexg4 {[%emt 0:00:26]} hxg5 {[%emt 0:00:30]} 22. hxg5 {[%emt 0:00:36]} Be7 {[%emt 0:01:09]} 23. Bxf4 {[%emt 0:00:41]} exf4 {[%emt 0:00:05]} 24. Nf3 {[%emt 0:00:54]} Bh5 {[%emt 0:00:18]} 25. Ngh2 {[%emt 0:00:34]} Nc6 {[%emt 0:00:13]} 26. Kg2 {[%emt 0:12:49]} Ne5 {[%emt 0:00:15]} 27. Rg1 {[%emt 0:01:06]} Rac8 {[%emt 0:00:22]} 28. Nxe5 {[%emt 0:02:21]} dxe5 {[%emt 0:00:06]} 29. Nf3 {[%emt 0:02:07]} Bd8 {[%emt 0:00:57]} 30. Bb3 {[%emt 0:03:12]} Rc6 {[%emt 0:00:16]} 31. a4 {[%emt 0:02:24]} Rg6 {[%emt 0:00:43]} 32. Rh1 {[%emt 0:01:24]} Bxf3+ {[%emt 0:00:52]} 33. Kxf3 {[%emt 0:00:04]} Bxg5 {[%emt 0:00:26]} 34. axb5 {[%emt 0:00:39]} axb5 {[%emt 0:00:10]} 35. Ra7 {[%emt 0:01:16]} Rf6 {[%emt 0:00:09]} 36. Rb7 {[%emt 0:00:58]} Rd8 {[%emt 0:00:40]} 37. Bd5 {[%emt 0:00:45]} c4 {[%emt 0:02:55]} 38. dxc4 {[%emt 0:02:05]} bxc4 {[%emt 0:00:06]} 39. Bxc4 {[%emt 0:00:17]} g6 {[%emt 0:01:34]} 40. Bd5 {[%emt 0:00:55]} Kg7 {[%emt 0:03:41]} 41. c4 {[%emt 0:01:16]} Ra8 {[%emt 0:02:05]} 42. c5 {[%emt 0:01:11]} Ra5 {[%emt 0:01:37]} 43. Rc1 {[%emt 0:01:05]} Ra8 {[%emt 0:00:22]} 44. Rg1 {[%emt 0:00:54]} Bh4 {[%emt 0:00:14]} 45. c6 {[%emt 0:00:23]} g5 {[%emt 0:01:08]} 46. c7 {[%emt 0:01:16]} Rc8 {[%emt 0:00:53]} 47. Rc1 {[%emt 0:00:57]} Rg6 {[%emt 0:02:12]} 48. Rb8 {[%emt 0:01:04]} g4+ {[%emt 0:00:08]} 49. Ke2 {[%emt 0:00:31]} f3+ {[%emt 0:00:34]} 50. Kf1 {[%emt 0:01:18]} g3 {[%emt 0:00:31]} 51. fxg3 {[%emt 0:00:25]} Bxg3 {[%emt 0:03:16]} 52. Rxc8 {[%emt 0:00:35]} Rh6 {[%emt 0:00:23]} 53. Rg8+ {[%emt 0:00:36]} Kxg8 {[%emt 0:00:13]} 54. c8=Q+ {[%emt 0:00:07]} Kg7 {[%emt 0:00:09]} 55. Qg4+ {[%emt 0:00:17]} Rg6 {[%emt 0:00:12]} 56. Qxg6+ {[%emt 0:00:44]} Kxg6 {[%emt 0:00:11]} 57. Rc3 {[%emt 0:00:10]} 1-0

[Event "1st Bangalore GM-Open-B 2024"]
[Site "Bangalore"]
[Date "2024.01.19"]
[Round "5.5"]
[White "Dawda Vihaan"]
[Black "Niranjan, Mocharla"]
[Result "1-0"]
[ECO "D11"]
[WhiteElo "1706"]
[BlackElo "1572"]
[Annotator "NA RC"]
[PlyCount "115"]
[EventDate "2024.01.20"]
[EventType "swiss"]
[EventCountry "IND"]
[SourceTitle "playchess.com"]
[Source "ChessBase"]
[SourceQuality "1"]
[TimeControl "3600+30"]

1. Nf3 {[%emt 0:00:09]} d5 {[%emt 0:00:48]} 2. g3 {[%emt 0:00:06]} c6 {[%emt 0:00:16]} 3. Bg2 {[%emt 0:00:06]} Bf5 {[%emt 0:00:19]} 4. O-O {[%emt 0:00:15]} Nd7 {[%emt 0:00:31]} 5. d4 {[%emt 0:00:49]} Ngf6 {[%emt 0:00:30]} 6. c4 {[%emt 0:00:17]} e6 {[%emt 0:03:03]} 7. Nc3 {[%emt 0:00:35]} dxc4 {[%emt 0:06:32]} 8. a4 {[%emt 0:04:37]} a5 {[%emt 0:00:40]} 9. Nh4 {[%emt 0:02:21]} Bg6 {[%emt 0:07:47]} 10. Nxg6 {[%emt 0:03:33]} hxg6 {[%emt 0:00:13]} 11. e4 {[%emt 0:01:26]} Nb6 {[%emt 0:12:11]} 12. Bg5 {[%emt 0:04:03]} Be7 {[%emt 0:01:55]} 13. e5 {[%emt 0:00:32]} Nfd5 {[%emt 0:03:51]} 14. Bxe7 {[%emt 0:00:09]} Nxe7 {[%emt 0:01:20]} 15. Ne4 {[%emt 0:01:17]} Nec8 {[%emt 0:03:06]} 16. Qg4 {[%emt 0:01:54]} Nd5 {[%emt 0:02:34]} 17. Rfd1 {[%emt 0:04:59]} Ra6 {[%emt 0:01:51]} 18. Ra3 {[%emt 0:04:03]} Rb6 {[%emt 0:02:57]} 19. Rf3 {[%emt 0:02:43]} Rh5 {[%emt 0:01:01]} 20. Bf1 {[%emt 0:03:36]} Rb4 {[%emt 0:00:36]} 21. Rc1 {[%emt 0:00:35]} Ndb6 {[%emt 0:01:26]} 22. Nc5 {[%emt 0:04:21]} Qe7 {[%emt 0:01:13]} 23. Rc2 {[%emt 0:02:25]} Nxa4 {[%emt 0:00:31]} 24. Nxa4 {[%emt 0:00:18]} Rxa4 {[%emt 0:00:02]} 25. Bxc4 {[%emt 0:00:13]} Nb6 {[%emt 0:01:12]} 26. Be2 {[%emt 0:00:41]} Rxe5 {[%emt 0:00:29]} 27. Rb3 {[%emt 0:04:24]} Rg5 {[%emt 0:02:13]} 28. Qf4 {[%emt 0:03:02]} e5 {[%emt 0:01:55]} 29. Qh4 {[%emt 0:01:09]} Rb4 {[%emt 0:00:54]} 30. Rxb4 {[%emt 0:02:56]} axb4 {[%emt 0:00:08]} 31. Qh8+ {[%emt 0:00:34]} Qf8 {[%emt 0:00:10]} 32. Qh4 {[%emt 0:00:04]} Qe7 {[%emt 0:03:17]} 33. Qh8+ {[%emt 0:00:05]} Kd7 {[%emt 0:01:43]} 34. h4 {[%emt 0:01:16]} Rf5 {[%emt 0:01:53]} 35. Bg4 {[%emt 0:00:14]} exd4 {[%emt 0:00:08]} 36. Re2 {[%emt 0:00:29]} Qf6 {[%emt 0:03:02]} 37. Qe8+ {[%emt 0:00:59]} Kd6 {[%emt 0:00:06]} 38. Bxf5 {[%emt 0:00:51]} gxf5 {[%emt 0:00:14]} 39. Qf8+ {[%emt 0:00:06]} Kc7 {[%emt 0:01:10]} 40. Qxb4 {[%emt 0:01:01]} Nd5 {[%emt 0:02:16]} 41. Qa5+ {[%emt 0:01:23]} Nb6 {[%emt 0:01:00]} 42. Rd2 {[%emt 0:02:27]} f4 {[%emt 0:00:33]} 43. Rd3 {[%emt 0:00:31]} fxg3 {[%emt 0:00:10]} 44. Rxg3 {[%emt 0:01:09]} Qe6 {[%emt 0:00:58]} 45. h5 {[%emt 0:02:12]} d3 {[%emt 0:03:06]} 46. Rxd3 {[%emt 0:00:33]} Qg4+ {[%emt 0:00:06]} 47. Rg3 {[%emt 0:00:04]} Qd1+ {[%emt 0:00:04]} 48. Kg2 {[%emt 0:00:23]} Qd4 {[%emt 0:00:08]} 49. Qc3 {[%emt 0:01:11]} Qd5+ {[%emt 0:00:27]} 50. Qf3 {[%emt 0:00:05]} Qe5 {[%emt 0:01:52]} 51. Qxf7+ {[%emt 0:00:11]} Kb8 {[%emt 0:00:19]} 52. Rxg7 {[%emt 0:00:26]} Qe4+ {[%emt 0:00:05]} 53. Qf3 {[%emt 0:00:17]} Qd4 {[%emt 0:00:13]} 54. Qg3+ {[%emt 0:00:32]} Ka7 {[%emt 0:00:14]} 55. Qa3+ {[%emt 0:00:33]} Kb8 {[%emt 0:00:12]} 56. Rg8+ {[%emt 0:00:04]} Kc7 {[%emt 0:00:13]} 57. Qg3+ {[%emt 0:00:07]} Kd7 {[%emt 0:00:18]} 58. Qg7+ {[%emt 0:00:41]} 1-0

[Event "1st Bangalore GM-Open-B 2024"]
[Site "Bangalore"]
[Date "2024.01.20"]
[Round "6.1"]
[White "Sushanth Vaman Shetty"]
[Black "Selvamurugan B"]
[Result "0-1"]
[ECO "D37"]
[WhiteElo "1704"]
[BlackElo "1920"]
[Annotator "RC"]
[PlyCount "84"]
[EventDate "2024.01.20"]
[EventType "swiss"]
[EventCountry "IND"]
[SourceTitle "playchess.com"]
[Source "ChessBase"]
[SourceQuality "1"]
[TimeControl "3600+30"]

1. d4 {[%emt 0:00:27]} Nf6 {[%emt 0:00:08]} 2. c4 {[%emt 0:00:04]} e6 {[%emt 0:00:32]} 3. Nf3 {[%emt 0:00:05]} d5 {[%emt 0:00:07]} 4. e3 {[%emt 0:00:10]} Be7 {[%emt 0:00:26]} 5. Nc3 {[%emt 0:00:07]} O-O {[%emt 0:00:09]} 6. Be2 {[%emt 0:00:06]} dxc4 {[%emt 0:00:36]} 7. O-O {[%emt 0:00:08]} a6 {[%emt 0:00:36]} 8. a4 {[%emt 0:00:20]} c5 {[%emt 0:00:15]} 9. Bxc4 {[%emt 0:00:31]} Nc6 {[%emt 0:01:56]} 10. b3 {[%emt 0:00:50]} cxd4 {[%emt 0:01:12]} 11. Nxd4 {[%emt 0:00:18]} Na5 {[%emt 0:07:39]} 12. Be2 {[%emt 0:00:11]} e5 {[%emt 0:02:29]} 13. Nf3 {[%emt 0:01:07]} Be6 {[%emt 0:00:37]} 14. Nxe5 {[%emt 0:01:02]} Nxb3 {[%emt 0:00:37]} 15. Qxd8 {[%emt 0:01:25]} Rfxd8 {[%emt 0:00:51]} 16. Rb1 {[%emt 0:03:24]} Rac8 {[%emt 0:00:20]} 17. Bb2 {[%emt 0:05:19]} Nd2 {[%emt 0:00:54]} 18. Nf3 {[%emt 0:02:11]} Nxb1 {[%emt 0:01:05]} 19. Rxb1 {[%emt 0:00:12]} Bb4 {[%emt 0:01:47]} 20. Rc1 {[%emt 0:00:26]} Bc4 {[%emt 0:01:27]} 21. Kf1 {[%emt 0:00:58]} Bxc3 {[%emt 0:00:25]} 22. Bxc3 {[%emt 0:00:15]} Ne4 {[%emt 0:00:27]} 23. Ba5 {[%emt 0:02:08]} Bxe2+ {[%emt 0:00:36]} 24. Kxe2 {[%emt 0:00:05]} Rxc1 {[%emt 0:00:04]} 25. Bxd8 {[%emt 0:00:07]} Rc8 {[%emt 0:00:24]} 26. Ba5 {[%emt 0:00:55]} Nc5 {[%emt 0:00:07]} 27. Nd4 {[%emt 0:00:47]} Nxa4 {[%emt 0:00:09]} 28. Kd2 {[%emt 0:00:32]} Nb2 {[%emt 0:00:10]} 29. Bc3 {[%emt 0:00:14]} Na4 {[%emt 0:00:20]} 30. Bb4 {[%emt 0:00:19]} g6 {[%emt 0:00:06]} 31. f4 {[%emt 0:00:13]} b6 {[%emt 0:00:04]} 32. g4 {[%emt 0:00:09]} a5 {[%emt 0:00:06]} 33. Be7 {[%emt 0:00:12]} Nc3 {[%emt 0:00:09]} 34. Kd3 {[%emt 0:00:25]} b5 {[%emt 0:00:17]} 35. e4 {[%emt 0:00:07]} b4 {[%emt 0:00:45]} 36. f5 {[%emt 0:00:11]} Na2 {[%emt 0:00:29]} 37. e5 {[%emt 0:00:32]} a4 {[%emt 0:00:18]} 38. e6 {[%emt 0:00:11]} a3 {[%emt 0:01:18]} 39. Nc2 {[%emt 0:00:50]} fxe6 {[%emt 0:00:22]} 40. fxe6 {[%emt 0:00:06]} Nc1+ {[%emt 0:00:28]} 41. Kd2 {[%emt 0:00:11]} Nb3+ {[%emt 0:00:07]} 42. Kd3 {[%emt 0:00:06]} Rc3+ {[%emt 0:00:09]} 0-1

[Event "1st Bangalore GM-Open-B 2024"]
[Site "Bangalore"]
[Date "2024.01.20"]
[Round "6.2"]
[White "Neil Franclin, S."]
[Black "Bapat Aniket"]
[Result "0-1"]
[ECO "A65"]
[WhiteElo "1736"]
[BlackElo "1698"]
[Annotator "NA RC"]
[PlyCount "54"]
[EventDate "2024.01.20"]
[EventType "swiss"]
[EventCountry "IND"]
[SourceTitle "playchess.com"]
[Source "ChessBase"]
[SourceQuality "1"]
[TimeControl "3600+30"]

1. d4 {[%emt 0:00:11]} Nf6 {[%emt 0:00:11]} 2. c4 {[%emt 0:00:09]} c5 {[%emt 0:00:06]} 3. d5 {[%emt 0:00:16]} g6 {[%emt 0:00:06]} 4. Nc3 {[%emt 0:00:23]} Bg7 {[%emt 0:00:08]} 5. e4 {[%emt 0:00:28]} O-O {[%emt 0:00:06]} 6. Be3 {[%emt 0:00:16]} d6 {[%emt 0:00:10]} 7. f3 {[%emt 0:00:10]} e6 {[%emt 0:00:43]} 8. Nge2 {[%emt 0:01:21]} exd5 {[%emt 0:00:06]} 9. cxd5 {[%emt 0:00:43]} h5 {[%emt 0:01:18]} 10. Qd2 {[%emt 0:02:08]} Nbd7 {[%emt 0:00:16]} 11. Nc1 {[%emt 0:02:52]} Ne5 {[%emt 0:00:22]} 12. Be2 {[%emt 0:00:33]} a6 {[%emt 0:00:07]} 13. a4 {[%emt 0:00:40]} Rb8 {[%emt 0:03:02]} 14. O-O {[%emt 0:02:20]} Bd7 {[%emt 0:02:13]} 15. a5 {[%emt 0:08:32]} Qe8 {[%emt 0:00:12]} 16. N1a2 {[%emt 0:08:43]} Bb5 {[%emt 0:01:46]} 17. Nxb5 {[%emt 0:01:57]} axb5 {[%emt 0:00:06]} 18. b4 {[%emt 0:01:24]} cxb4 {[%emt 0:01:41]} 19. Qxb4 {[%emt 0:05:18]} Nxd5 {[%emt 0:00:52]} 20. exd5 {[%emt 0:07:01]} Nc4 {[%emt 0:00:06]} 21. Bxc4 {[%emt 0:01:03]} Qxe3+ {[%emt 0:00:06]} 22. Kh1 {[%emt 0:00:02]} Bxa1 {[%emt 0:00:46]} 23. Bxb5 {[%emt 0:00:31]} Be5 {[%emt 0:00:24]} 24. f4 {[%emt 0:00:51]} Bg7 {[%emt 0:00:51]} 25. h3 {[%emt 0:05:04]} Rbc8 {[%emt 0:02:03]} 26. Qxd6 {[%emt 0:01:32]} Rfd8 {[%emt 0:02:43]} 27. Bd7 {[%emt 0:01:15]} Bf8 {[%emt 0:00:32]} 0-1